bitfinex-derivatives/quotes_ETHF0:USTF0_20250621
["timestamp","ask_amount","ask_price","bid_price","bid_amount"]
[1750530544174,0.83112,2405.9,2405.8,4.03893]
[1750530544586,0.83111,2406.0,2405.8,4.03893]
[1750530544989,0.83112,2405.9,2405.8,3.2078]
[1750530546082,0.83112,2405.9,2405.8,4.03895]
[1750530547288,0.83112,2405.9,2405.8,3.2078]
[1750530550495,0.83112,2405.9,2405.8,4.03895]
[1750530550692,0.83112,2405.9,2405.8,3.2078]
[1750530551392,0.8312,2405.7,2405.5,3.2078]
[1750530551592,0.6565,2405.6,2405.5,4.03903]
[1750530552091,0.6565,2405.6,2405.5,4.71763]
[1750530555294,0.6565,2405.6,2405.5,7.01373]
[1750530558889,1.48772,2405.6,2405.5,7.01373]
[1750530559494,0.6565,2405.6,2405.5,6.33513]
[1750530561405,2.22057,2405.8,2405.7,0.83119]
[1750530561700,2.90627,2405.8,2405.7,0.83119]
[1750530562486,0.83119,2405.7,2405.6,0.8312]
[1750530563493,0.83116,2405.8,2405.7,0.83117]
[1750530563701,6.589,2406.1,2405.5,5.5039]
[1750530563702,0.8312,2405.7,2405.6,0.83121]
[1750530563998,3.28070922,2406.0,2405.5,8.808481]
[1750530563999,0.83118,2405.8,2405.7,0.83119]
[1750530564205,4.65300922,2406.0,2405.7,0.83119]
[1750530564403,0.83115,2405.8,2405.7,0.83119]
[1750530564601,2.20344,2405.9,2405.7,0.83119]
[1750530564799,1.4825,2406.0,2405.9,0.83112]
[1750530564999,2.52560047,2406.0,2405.9,0.83112]
[1750530565497,1.69450047,2406.0,2405.9,0.83112]
[1750530566205,2.52558047,2406.0,2405.9,0.83112]
[1750530566901,1.69450047,2406.0,2405.9,0.83112]
[1750530567397,0.6514,2406.0,2405.9,0.83112]
[1750530567602,1.48248,2406.0,2405.9,0.83112]
[1750530568301,1.48248,2406.0,2405.8,4.03893]
[1750530568694,0.83112,2405.9,2405.8,4.03893]
[1750530569002,1.48251,2406.0,2405.8,4.03893]
[1750530569302,0.83112,2405.9,2405.8,4.03893]
[1750530569804,1.48251,2406.0,2405.9,0.83112]
[1750530570101,0.83103,2406.2,2406.0,0.83105]
[1750530570295,0.83103,2406.2,2406.1,0.6935]
[1750530570701,0.83103,2406.2,2406.1,1.52455]
[1750530570899,4.03876,2406.4,2406.3,0.83098]
[1750530571106,4.25064503,2406.4,2406.3,0.83098]
[1750530571402,3.2078,2406.4,2406.3,0.83098]
[1750530571800,4.03875,2406.4,2406.3,0.83098]
[1750530571996,4.03875,2406.4,2406.2,1.53229]
[1750530572501,0.83095,2406.4,2406.3,3.2078]
[1750530574209,0.83095,2406.4,2406.3,4.03878]
[1750530574714,0.83095,2406.4,2406.3,3.2078]
[1750530576808,0.83095,2406.4,2406.3,4.03878]
[1750530577210,0.83095,2406.4,2406.3,3.2078]
[1750530578105,3.46025922,2406.4,2406.3,3.2078]
[1750530579308,0.83098,2406.3,2406.2,0.7013]
[1750530579809,0.83098,2406.3,2406.2,1.53232]
[1750530580104,0.83098,2406.3,2406.2,0.7013]
[1750530580708,0.83098,2406.3,2406.2,1.53232]
[1750530580908,0.83098,2406.3,2406.2,0.7013]
[1750530581109,0.83098,2406.3,2406.2,1.53232]
[1750530581311,0.83098,2406.3,2406.2,0.7013]
[1750530583912,2.62930922,2406.3,2406.0,3.2078]
[1750530584116,0.83105,2406.1,2406.0,3.2078]
[1750530584308,2.14804,2406.2,2406.0,4.03888]
[1750530584614,0.83104,2406.2,2406.1,0.83105]
[1750530585113,0.83101,2406.3,2406.1,0.83105]
[1750530585411,0.83101,2406.3,2406.1,0.83102]
[1750530585610,0.83101,2406.3,2406.2,1.53452]
[1750530586013,0.83101,2406.3,2406.2,0.7035]
[1750530586717,0.83105,2406.1,2406.0,4.03886]
[1750530586914,0.83105,2406.1,2406.0,3.9184]
[1750530587401,0.83105,2406.1,2406.0,4.74948]
[1750530588911,0.83105,2406.1,2406.0,3.9184]
[1750530589114,0.83105,2406.1,2406.0,3.2078]
[1750530590809,2.89205,2406.1,2406.0,3.2078]
[1750530591014,5.52135922,2406.1,2406.0,3.2078]
[1750530591423,0.83115,2405.8,2405.7,3.2078]
[1750530591722,3.46045922,2405.8,2405.7,3.2078]
[1750530593124,0.83115,2405.8,2405.7,3.2078]
[1750530593521,2.20984,2405.9,2405.7,4.03897]
[1750530594418,0.83115,2405.8,2405.7,4.03897]
[1750530594618,0.6823,2406.1,2405.7,4.03897]
[1750530594619,0.83114,2405.9,2405.7,4.03897]
[1750530595226,0.83115,2405.8,2405.7,4.03897]
[1750530596527,0.83115,2405.8,2405.7,3.2078]
[1750530598129,0.83115,2405.8,2405.7,4.03899]
[1750530598830,0.83113,2405.9,2405.8,0.83114]
[1750530599127,0.83113,2405.9,2405.7,3.2078]
[1750530599327,0.6823,2406.1,2405.7,4.03897]
[1750530599523,0.83114,2405.9,2405.8,0.83115]
[1750530600532,0.83115,2405.8,2405.7,3.2078]
[1750530601530,3.46045922,2405.8,2405.7,3.2078]
[1750530602724,0.83114,2405.9,2405.8,0.83113]
[1750530603832,0.83114,2405.9,2405.8,3.12773]
[1750530604032,0.83114,2405.9,2405.8,2.2966]
[1750530605033,2.25114,2405.9,2405.8,2.2966]
[1750530605326,18.08038758,2405.9,2405.8,1.37052]
[1750530606928,0.83129,2405.4,2405.3,3.2078]
[1750530607638,27.4745,2405.7,2405.3,3.2078]
[1750530607936,26.91101,2405.7,2405.6,3.2078]
[1750530608230,1.50201,2405.7,2405.6,3.2078]
[1750530608936,26.91001,2405.7,2405.6,3.2078]
[1750530609325,0.83126,2405.5,2405.4,0.6855]
[1750530610537,0.83126,2405.5,2405.4,1.51679]
[1750530610727,0.83126,2405.5,2405.4,0.6855]
[1750530613039,0.83125,2405.6,2405.4,0.6855]
[1750530613339,0.83125,2405.6,2405.4,2.84716]
[1750530613538,0.83126,2405.5,2405.4,2.84716]
[1750530613841,0.83126,2405.5,2405.4,2.0159]
[1750530615545,0.83126,2405.5,2405.4,0.6855]
[1750530618445,26.23926,2405.5,2405.4,0.6855]
[1750530619442,26.23926,2405.5,2405.4,1.51679]
[1750530619738,26.23926,2405.5,2405.4,0.6855]
[1750530620843,26.23926,2405.5,2405.4,1.51679]
[1750530621550,26.23926,2405.5,2405.4,0.6855]
[1750530622144,26.23926,2405.5,2405.4,1.51679]
[1750530624645,26.23722,2405.7,2405.6,0.8312]
[1750530624944,26.23722,2405.7,2405.6,3.2078]
[1750530625850,28.86652922,2405.7,2405.6,3.2078]
[1750530626250,28.86652922,2405.7,2405.6,4.03902]
[1750530626449,28.86652922,2405.7,2405.6,3.2078]
[1750530626647,26.23722,2405.7,2405.6,3.2078]
[1750530627754,26.23722,2405.7,2405.6,4.03902]
[1750530627954,26.23622,2405.7,2405.6,4.03902]
[1750530628847,26.23622,2405.7,2405.6,3.2078]
[1750530630148,0.83122,2405.7,2405.6,3.2078]
[1750530630454,26.23522,2405.7,2405.6,3.2078]
[1750530630856,28.86452922,2405.7,2405.6,3.2078]
[1750530631054,0.83129,2405.4,2405.3,3.8707]
[1750530631261,26.23529,2405.4,2405.3,3.8707]
[1750530632146,26.23529,2405.4,2405.3,3.2078]
[1750530632354,0.83133,2405.3,2405.2,1.3723]
[1750530632555,5.46193922,2405.3,2405.2,1.3723]
[1750530633150,10.46193922,2405.3,2405.2,1.3723]
[1750530633355,11.5070247,2405.3,2405.2,1.3723]
[1750530634355,3.87771548,2405.3,2405.2,1.3723]
[1750530634559,27.94871548,2405.3,2405.2,1.3723]
[1750530634753,25.404,2405.3,2405.2,2.20366]
[1750530635957,25.404,2405.4,2405.2,1.3723]
[1750530636158,0.83133,2405.3,2405.2,2.20365]
[1750530636359,0.83133,2405.3,2405.2,1.3723]
[1750530638059,0.83133,2405.3,2405.2,2.20366]
[1750530638258,0.83133,2405.3,2405.2,1.3723]
[1750530638854,5.51943922,2405.3,2405.2,1.3723]
[1750530639958,10.51943922,2405.3,2405.2,1.3723]
[1750530640259,11.56441938,2405.3,2405.2,1.3723]
[1750530641459,11.56441938,2405.3,2405.2,0.49439]
[1750530641760,0.83153,2404.7,2404.6,0.7106]
[1750530645066,25.404,2404.8,2404.4,3.9177]
[1750530645067,0.8316,2404.5,2404.4,3.9177]
[1750530645267,0.8316,2404.5,2404.4,4.5768]
[1750530646373,0.8316,2404.5,2404.4,5.40844]
[1750530646772,25.404,2404.8,2404.4,4.5768]
[1750530646964,26.23551,2404.8,2404.7,0.83153]
[1750530647472,0.83154,2404.7,2404.6,0.83155]
[1750530648068,0.83157,2404.6,2404.5,1.3302]
[1750530648270,0.83157,2404.6,2404.5,0.8316]
[1750530649276,0.83157,2404.6,2404.4,5.0729]
[1750530649277,0.8316,2404.5,2404.4,5.90451]
[1750530649669,0.8316,2404.5,2404.4,5.0729]
[1750530650161,0.8316,2404.5,2404.4,4.5768]
[1750530650667,2.62930922,2404.6,2404.1,3.2078]
[1750530650869,3.8667,2404.9,2404.2,1.3039]
[1750530651166,31.98,2404.8,2404.4,4.03942]
[1750530651369,0.83159,2404.6,2404.4,4.03942]
[1750530652267,3.8667,2404.9,2404.4,3.2078]
[1750530652474,3.8667,2404.9,2404.8,0.8315]
[1750530652475,0.6589,2404.9,2404.8,0.8315]
[1750530652674,25.407,2404.9,2404.8,0.8315]
[1750530652873,26.23846,2404.9,2404.8,0.8315]
[1750530653475,0.8315,2404.8,2404.7,0.657]
[1750530654576,0.8315,2404.8,2404.7,1.48853]
[1750530655179,0.8315,2404.8,2404.7,0.657]
[1750530658386,0.83141,2405.1,2404.7,16.7982]
[1750530658683,0.8314,2405.1,2405.0,3.2078]
[1750530659069,0.8314,2405.1,2405.0,3.9062]
[1750530660278,0.8314,2405.1,2405.0,4.73763]
[1750530660479,1.50336,2405.2,2405.1,0.8314]
[1750530660876,1.50336,2405.2,2405.0,4.73761]
[1750530661180,6.34123785,2405.9,2405.0,3.9062]
[1750530661380,0.83125,2405.6,2405.4,4.03908]
[1750530661575,0.83125,2405.6,2405.5,0.6723]
[1750530662979,0.672,2405.8,2405.5,0.6723]
[1750530663184,0.8312,2405.7,2405.5,1.50354]
[1750530664383,0.83122,2405.6,2405.5,1.50354]
[1750530664591,0.83122,2405.6,2405.5,0.6723]
[1750530665385,0.83126,2405.5,2405.4,3.2078]
[1750530665585,0.83124,2405.6,2405.4,4.03909]
[1750530665787,26.074,2405.8,2405.4,3.2078]
[1750530665988,25.402,2405.7,2405.6,0.83122]
[1750530666687,26.23319,2405.7,2405.5,0.83123]
[1750530667083,25.402,2405.7,2405.4,4.5381]
[1750530667288,25.402,2405.7,2405.4,3.2078]
[1750530667289,0.83126,2405.5,2405.4,3.2078]
[1750530667485,0.83129,2405.4,2405.3,0.706]
[1750530667691,1.54419,2405.4,2405.3,0.706]
[1750530669899,1.54419,2405.4,2405.3,1.53733]
[1750530671903,10.4436,2405.9,2405.3,0.706]
[1750530672106,26.1023,2405.8,2405.4,3.2078]
[1750530672401,27.4245,2405.8,2405.4,3.2078]
[1750530672702,0.83126,2405.5,2405.4,4.03908]
[1750530673201,0.83125,2405.6,2405.5,0.83126]
[1750530674300,0.83122,2405.6,2405.5,0.83123]
[1750530674498,26.1023,2405.8,2405.4,4.03908]
[1750530674705,0.8312,2405.7,2405.6,0.83121]
[1750530675201,0.83122,2405.7,2405.5,0.83123]
[1750530675394,0.83122,2405.6,2405.5,0.83123]
[1750530675594,0.83126,2405.5,2405.4,4.03907]
[1750530676203,0.83124,2405.6,2405.5,0.83126]
[1750530676500,27.4194,2405.8,2405.4,4.03907]
[1750530676705,0.83126,2405.5,2405.4,3.2078]
[1750530677502,0.83126,2405.5,2405.4,4.03909]
[1750530677702,2.14931,2405.7,2405.5,0.83125]
[1750530677903,1.3181,2405.7,2405.5,0.83125]
[1750530678408,0.83122,2405.6,2405.5,0.83125]
[1750530678907,0.83122,2405.6,2405.4,4.03908]
[1750530679208,0.83126,2405.5,2405.4,4.03908]
[1750530679404,0.83126,2405.5,2405.4,3.2078]
[1750530679611,0.83126,2405.5,2405.4,4.03909]
[1750530680702,6.02539922,2405.7,2405.3,0.706]
[1750530680904,0.83129,2405.4,2405.3,0.706]
[1750530681105,0.83129,2405.4,2405.3,1.53733]
[1750530681301,1.50829,2405.4,2405.3,0.706]
[1750530681501,1.50829,2405.4,2405.2,11.29023]
[1750530682311,0.83133,2405.3,2405.2,3.2078]
[1750530682604,2.20133,2405.3,2405.2,3.2078]
[1750530682803,2.20133,2405.3,2405.1,0.83137]
[1750530682804,0.83139,2405.2,2405.1,0.8314]
[1750530683108,0.8314,2405.1,2405.0,1.54221]
[1750530683310,0.83143,2405.0,2404.9,3.2078]
[1750530683609,1.50843,2405.0,2404.9,3.2078]
[1750530684104,0.677,2405.0,2404.9,3.2078]
[1750530684408,0.677,2405.0,2404.9,4.03926]
[1750530684909,0.6845,2405.4,2404.9,3.2078]
[1750530685108,0.6819,2405.2,2405.1,0.83137]
[1750530685305,1.51326,2405.2,2405.1,4.03917]
[1750530686410,0.83134,2405.3,2405.2,0.83136]
[1750530686609,0.83136,2405.2,2405.1,4.03918]
[1750530686908,0.83136,2405.2,2405.1,3.2078]
[1750530687609,0.83135,2405.3,2405.1,3.2078]
[1750530687810,0.83135,2405.3,2405.2,0.83136]
[1750530688407,0.83135,2405.3,2405.1,4.03917]
[1750530688706,26.22632,2405.4,2405.2,0.83136]
[1750530688908,0.83133,2405.3,2405.2,0.83136]
[1750530689105,0.83133,2405.3,2405.1,4.03917]
[1750530689308,0.83133,2405.3,2405.2,0.83136]
[1750530689610,0.83136,2405.2,2405.1,3.2078]
[1750530689797,0.83136,2405.2,2405.1,4.0392]
[1750530690405,0.83136,2405.2,2405.1,3.2078]
[1750530691610,0.83136,2405.2,2405.0,1.49332]
[1750530691611,0.83139,2405.2,2405.0,1.49332]
[1750530691913,30.10256922,2405.4,2405.0,1.49332]
[1750530691914,0.8314,2405.1,2405.0,1.49332]
[1750530692408,32.11496922,2405.4,2404.9,4.70545]
[1750530692609,0.6579,2405.0,2404.9,4.70545]
[1750530693214,1.48933,2405.0,2404.9,4.70545]
[1750530693413,1.48933,2405.0,2404.9,3.2078]
[1750530694114,0.6579,2405.0,2404.9,4.03926]
[1750530695013,1.48933,2405.0,2404.9,4.03926]
[1750530696015,26.88333,2405.0,2404.9,3.2078]
[1750530696316,0.8315,2404.8,2404.7,0.6755]
[1750530696615,0.83153,2404.7,2404.6,3.9164]
[1750530696815,1.50313,2404.7,2404.6,3.9164]
[1750530697615,0.6716,2404.7,2404.6,4.74797]
[1750530698312,0.83152,2404.8,2404.6,4.74797]
[1750530698816,2.85029,2404.9,2404.7,1.48013]
[1750530699219,0.8315,2404.8,2404.7,1.48013]
[1750530699622,0.8315,2404.8,2404.7,0.6486]
[1750530699921,0.8315,2404.8,2404.7,1.48013]
[1750530700220,0.8315,2404.8,2404.7,0.6486]
[1750530700612,0.8315,2404.8,2404.7,1.48013]
[1750530702023,0.8315,2404.8,2404.7,0.6486]
[1750530703624,0.8315,2404.8,2404.6,3.9164]
[1750530703625,0.83153,2404.7,2404.6,3.9164]
[1750530705021,0.83153,2404.7,2404.6,3.2078]
[1750530705225,2.0789,2404.7,2404.2,4.03949]
[1750530705419,2.62930922,2404.5,2404.2,4.03949]
[1750530705724,0.83167,2404.3,2404.2,3.2078]
[1750530706118,3.46097922,2404.3,2404.2,3.2078]
[1750530706318,0.83178,2404.0,2403.9,0.6687]
[1750530706520,0.83178,2404.0,2403.8,4.70034]
[1750530706720,0.83181,2403.9,2403.8,4.70034]
[1750530706921,0.83181,2403.9,2403.8,3.2078]
[1750530707826,0.8318,2404.0,2403.8,4.03964]
[1750530708020,1.3457,2404.0,2403.9,0.83181]
[1750530708220,2.17748,2404.0,2403.8,4.03962]
[1750530708425,1.3457,2404.0,2403.8,3.2078]
[1750530708926,0.83181,2403.9,2403.8,4.03962]
[1750530709130,0.83181,2403.9,2403.8,3.2078]
[1750530709428,2.17749,2404.0,2403.8,4.03963]
[1750530709629,1.3457,2404.0,2403.8,4.03963]
[1750530710029,1.3457,2404.0,2403.8,4.03962]
[1750530710328,2.17748,2404.0,2403.8,4.03962]
[1750530710533,0.83178,2404.0,2403.9,0.83181]
[1750530710726,0.83176,2404.1,2403.9,1.53841]
[1750530711127,0.83178,2404.0,2403.9,1.53841]
[1750530711427,0.6883,2404.2,2404.1,0.83174]
[1750530711631,0.83171,2404.2,2404.1,3.2078]
[1750530711825,0.83171,2404.2,2404.1,4.03954]
[1750530712827,0.8317,2404.3,2404.1,4.03954]
[1750530713029,0.83171,2404.2,2404.1,4.03954]
[1750530713928,6.569,2404.5,2404.2,0.83167]
[1750530714229,31.968,2404.5,2404.2,1.50717]
[1750530714431,0.83167,2404.4,2404.2,1.50717]
[1750530714632,32.79963,2404.5,2404.3,1.50327]
[1750530715230,0.83164,2404.4,2404.3,1.50327]
[1750530715629,32.79962,2404.5,2404.3,1.50325]
[1750530715825,0.83164,2404.4,2404.3,2.011]
[1750530716425,2.62930922,2404.4,2404.2,0.6755]
[1750530716633,9.19830922,2404.4,2403.8,3.8794]
[1750530716829,0.83168,2404.3,2404.1,3.2078]
[1750530717028,0.83168,2404.3,2404.2,1.3228]
[1750530718332,25.399,2404.5,2404.2,1.3228]
[1750530718531,0.83167,2404.3,2404.2,1.3228]
[1750530719733,0.83167,2404.3,2404.2,0.6512]
[1750530720232,0.83171,2404.2,2404.1,3.2078]
[1750530720531,1.51991,2404.2,2404.1,3.2078]
[1750530720930,0.83178,2404.0,2403.9,6.57]
[1750530721131,0.6882,2404.2,2403.8,3.879]
[1750530721132,0.83181,2403.9,2403.8,3.879]
[1750530721334,0.83181,2403.9,2403.8,4.71084]
[1750530721932,0.83179,2404.0,2403.8,4.71084]
[1750530722230,0.83181,2403.9,2403.8,3.2078]
[1750530722434,0.8319,2403.7,2403.5,4.03973]
[1750530722733,0.8319,2403.7,2403.6,0.6712]
[1750530723332,0.83186,2403.8,2403.6,0.6712]
[1750530723633,0.83186,2403.8,2403.6,1.3197]
[1750530723832,0.83188,2403.7,2403.6,1.3197]
[1750530724335,0.83188,2403.7,2403.6,2.15161]
[1750530724527,0.83188,2403.7,2403.6,1.3197]
[1750530724923,0.83188,2403.7,2403.6,2.15161]
[1750530725233,0.83188,2403.7,2403.6,1.3197]
[1750530725735,0.83191,2403.6,2403.5,3.2078]
[1750530726036,0.83191,2403.6,2403.5,4.03975]
[1750530726943,0.83191,2403.6,2403.5,14.79435635]
[1750530727237,0.83191,2403.6,2403.5,4.03975]
[1750530728236,0.83191,2403.6,2403.5,3.2078]
[1750530728438,0.83191,2403.6,2403.5,4.03975]
[1750530729038,0.83191,2403.6,2403.5,3.2078]
[1750530729429,0.83191,2403.6,2403.5,4.03975]
[1750530729641,0.83191,2403.6,2403.5,3.2078]
[1750530730340,0.8319,2403.7,2403.6,0.83191]
[1750530730839,0.8319,2403.7,2403.5,3.2078]
[1750530730840,0.83191,2403.6,2403.5,3.2078]
[1750530731036,0.83206,2403.2,2403.1,3.2078]
[1750530731435,0.83204,2403.3,2403.1,3.2078]
[1750530731735,0.83204,2403.3,2403.1,4.03986]
[1750530732540,1.5429,2403.4,2403.2,0.83205]
[1750530732835,3.2078,2403.8,2403.1,3.2078]
[1750530733048,0.83195,2403.6,2403.2,4.05400922]
[1750530733335,1.4818,2403.7,2403.5,3.2078]
[1750530733531,1.4818,2403.7,2403.6,0.6565]
[1750530733842,0.83187,2403.8,2403.7,0.83188]
[1750530734834,0.83187,2403.8,2403.6,2.17879]
[1750530735042,0.83188,2403.7,2403.6,2.17879]
[1750530735235,0.83188,2403.8,2403.7,0.83187]
[1750530735839,0.83188,2403.7,2403.6,2.17879]
[1750530736539,0.83188,2403.7,2403.6,1.3469]
[1750530736939,0.83191,2403.6,2403.5,3.2078]
[1750530738440,0.8319,2403.7,2403.5,4.03974]
[1750530738843,0.83191,2403.6,2403.5,3.2078]
[1750530740545,0.83191,2403.7,2403.5,4.03974]
[1750530740741,3.98830922,2403.8,2403.5,4.03974]
[1750530740742,0.83191,2403.6,2403.5,3.2078]
[1750530743046,1.49711,2403.6,2403.5,3.2078]
[1750530743852,0.6652,2403.6,2403.5,3.2078]
[1750530744243,1.49711,2403.6,2403.5,3.2078]
[1750530745253,27.48358,2403.9,2403.5,4.03975]
[1750530745549,0.7143,2403.8,2403.5,4.03975]
[1750530745743,0.7143,2403.8,2403.5,3.2078]
[1750530745949,0.83191,2403.6,2403.5,3.2078]
[1750530747248,0.7143,2403.8,2403.5,3.2078]
[1750530747554,37.25884,2404.5,2404.0,0.83176]
[1750530747848,0.83171,2404.2,2404.1,0.6916]
[1750530750353,0.83171,2404.2,2404.1,1.52334]
[1750530750854,0.83162,2404.5,2404.3,0.83166]
[1750530751059,0.83164,2404.4,2404.3,3.2078]
[1750530751347,0.83163,2404.5,2404.3,4.03947]
[1750530751656,0.8316,2404.5,2404.3,3.2078]
[1750530751855,0.8316,2404.5,2404.3,4.03945]
[1750530752552,1.54589,2404.6,2404.4,0.83164]
[1750530752746,0.83164,2404.4,2404.3,3.2078]
[1750530752947,0.83168,2404.3,2404.1,0.83172]
[1750530753347,0.83169,2404.3,2404.1,0.83174]
[1750530754562,3.98230922,2404.5,2404.2,0.83171]
[1750530754753,0.83169,2404.3,2404.1,0.83172]
[1750530756356,0.83169,2404.3,2404.2,0.83171]
[1750530756556,0.83166,2404.4,2404.2,0.83171]
[1750530756752,0.83166,2404.4,2404.3,3.2078]
[1750530756953,0.83167,2404.3,2404.2,0.83171]
[1750530757657,3.2078,2405.1,2404.5,0.8316]
[1750530757956,0.83148,2404.9,2404.7,4.03931]
[1750530758152,0.8315,2404.8,2404.7,3.2078]
[1750530758458,0.83149,2404.9,2404.7,4.03932]
[1750530758859,2.25399,2404.9,2404.7,3.2078]
[1750530759157,2.25399,2404.9,2404.7,4.03933]
[1750530759363,0.8315,2404.8,2404.7,3.2078]
[1750530759558,3.46080922,2404.8,2404.7,3.2078]
[1750530759765,4.12121922,2404.8,2404.6,0.83155]
[1750530760460,1.4225,2404.9,2404.7,4.03933]
[1750530760461,2.25398,2404.9,2404.7,4.03933]
[1750530760762,0.8315,2404.8,2404.7,3.2078]
[1750530761160,0.83155,2404.7,2404.5,0.83158]
[1750530761455,1.4225,2404.9,2404.4,3.2078]
[1750530761456,0.83152,2404.8,2404.6,0.83157]
[1750530761861,0.7127,2404.7,2404.6,0.83157]
[1750530763067,7.39544,2405.0,2404.9,0.83146]
[1750530763262,0.6883,2405.0,2404.9,0.83146]
[1750530763562,4.03922,2405.1,2404.9,0.83145]
[1750530763761,4.03922,2405.1,2405.0,0.83143]
[1750530763964,0.6883,2405.2,2405.1,0.8314]
[1750530764261,1.51966,2405.2,2404.8,2.6797]
[1750530764458,0.6883,2405.2,2405.1,0.8314]
[1750530764663,1.51967,2405.2,2405.0,0.83141]
[1750530765566,0.83141,2405.1,2404.9,0.83144]
[1750530765765,0.83141,2405.1,2405.0,3.2078]
[1750530765967,0.83141,2405.1,2405.0,4.03923]
[1750530766158,1.51968,2405.2,2405.0,4.03923]
[1750530766461,0.8314,2405.1,2405.0,4.03923]
[1750530766663,0.8314,2405.1,2405.0,3.2078]
[1750530770372,3.31760922,2405.2,2404.8,2.1629]
[1750530770558,4.62270922,2405.2,2404.8,2.1629]
[1750530770758,0.83146,2404.9,2404.8,1.3314]
[1750530771274,0.83146,2404.9,2404.6,4.03936]
[1750530771275,2.62930922,2404.9,2404.6,4.03936]
[1750530771568,1.50261,2404.8,2404.6,4.74166]
[1750530771762,0.83153,2404.7,2404.6,4.74166]
[1750530771956,0.83157,2404.6,2404.5,0.6473]
[1750530772158,0.83164,2404.4,2404.3,3.2078]
[1750530772357,3.46094922,2404.4,2404.3,3.2078]
[1750530772567,0.83173,2404.2,2404.0,5.41388]
[1750530773468,2.84709,2404.3,2404.1,0.83174]
[1750530774563,0.83163,2404.5,2404.3,0.83165]
[1750530774766,0.83165,2404.4,2404.3,3.2078]
[1750530775264,0.83165,2404.4,2404.3,4.03947]
[1750530775470,0.83163,2404.5,2404.3,4.03947]
[1750530775772,0.83163,2404.5,2404.4,0.83164]
[1750530776163,0.83164,2404.4,2404.3,3.2078]
[1750530776469,0.83162,2404.5,2404.3,4.03946]
[1750530776970,8.06159,2404.6,2404.4,0.83163]
[1750530777570,1.49859,2404.6,2404.4,0.83163]
[1750530777766,0.667,2404.6,2404.5,0.8316]
[1750530778871,0.8316,2404.5,2404.4,1.53091]
[1750530779364,1.49859,2404.6,2404.4,1.53091]
[1750530779873,0.8316,2404.5,2404.4,0.6993]
[1750530780665,0.83164,2404.4,2404.3,4.03947]
[1750530780860,0.83163,2404.5,2404.3,4.03947]
[1750530781068,0.83163,2404.5,2404.3,3.2078]
[1750530781270,0.83163,2404.5,2404.3,4.03945]
[1750530781469,0.83164,2404.4,2404.3,3.2078]
[1750530782268,0.83164,2404.4,2404.3,4.03947]
[1750530782468,0.83163,2404.5,2404.3,4.03947]
[1750530782665,0.83164,2404.4,2404.3,4.03947]
[1750530783871,0.83163,2404.5,2404.3,4.03947]
[1750530784371,0.83164,2404.4,2404.3,4.03947]
[1750530786473,0.83164,2404.4,2404.3,3.2078]
[1750530786974,0.83164,2404.4,2404.3,4.03947]
[1750530788184,0.83164,2404.4,2404.3,3.2078]
[1750530788666,0.83171,2404.2,2404.1,7.2507]
[1750530789377,0.83174,2404.1,2404.0,3.2078]
[1750530789669,2.0374,2404.1,2404.0,4.03958]
[1750530789877,0.6685,2404.1,2404.0,4.03958]
[1750530791476,0.83155,2404.7,2404.2,2.07927]
[1750530791674,0.83159,2404.6,2404.4,4.03942]
[1750530791875,9.7708,2404.9,2404.4,4.03942]
[1750530791876,9.7708,2404.9,2404.5,0.8316]
[1750530792077,0.83156,2404.7,2404.5,0.8316]
[1750530792274,0.83157,2404.6,2404.4,4.03941]
[1750530794184,0.83154,2404.7,2404.4,3.2078]
[1750530794374,0.83157,2404.6,2404.4,5.40731]
[1750530795484,0.8316,2404.5,2404.4,4.5757]
[1750530795680,0.8316,2404.5,2404.4,3.2078]
[1750530795985,0.8316,2404.5,2404.4,4.03944]
[1750530796777,0.8316,2404.5,2404.4,3.2078]
[1750530798181,0.8316,2404.5,2404.4,4.03944]
[1750530798381,0.8316,2404.5,2404.4,3.2078]
[1750530801597,0.8316,2404.5,2404.3,1.3558]
[1750530801598,0.83167,2404.3,2404.1,7.35265158]
[1750530801899,0.83167,2404.3,2404.2,0.83171]
[1750530802682,0.6862,2404.4,2404.1,6.52093158]
[1750530802997,0.83174,2404.1,2404.0,4.67273158]
[1750530803395,0.83174,2404.1,2404.0,1.3596]
[1750530804090,0.83178,2404.0,2403.9,3.31313158]
[1750530804284,1.49538,2404.0,2403.9,3.31313158]
[1750530805390,0.83181,2403.9,2403.8,6.52093158]
[1750530806099,0.6636,2404.0,2403.9,0.83181]
[1750530807291,1.49538,2404.0,2403.8,7.35275158]
[1750530807490,1.49538,2404.0,2403.9,0.83181]
[1750530807689,0.83181,2403.9,2403.8,3.2078]
[1750530807999,1.4954,2404.0,2403.9,0.83181]
[1750530808895,0.6636,2404.0,2403.9,0.83181]
[1750530809094,1.49538,2404.0,2403.9,0.83181]
[1750530810194,1.49538,2404.0,2403.8,3.2078]
[1750530810195,7.2451,2404.3,2404.1,0.83173]
[1750530810400,0.8318,2404.0,2403.9,0.8318]
[1750530811100,0.83181,2403.9,2403.8,4.03963]
[1750530811601,0.83176,2404.1,2404.0,0.83177]
[1750530812403,1.999,2404.2,2404.1,0.83174]
[1750530812404,0.6852,2404.2,2404.1,0.83174]
[1750530812603,0.6852,2404.2,2404.1,4.03954]
[1750530813799,1.51691,2404.2,2404.1,4.03954]
[1750530814706,0.6852,2404.2,2404.1,4.03954]
[1750530814998,1.51691,2404.2,2404.1,4.03954]
[1750530815205,0.6852,2404.2,2404.1,4.03954]